bitfinex-derivatives/quotes_ETHF0:USTF0_20251012
["timestamp","ask_amount","ask_price","bid_price","bid_amount"]
[1760307288421,0.43579,4127.1,4126.8,0.8121]
[1760307288626,0.43579,4127.1,4126.8,4.0199]
[1760307288928,0.4358,4127.0,4126.8,4.0199]
[1760307289226,1.2886,4127.5,4126.8,4.0199]
[1760307289722,0.43579,4127.1,4126.8,3.64361]
[1760307290024,0.43579,4127.1,4126.9,0.8121]
[1760307290220,1.2886,4127.5,4126.8,3.2078]
[1760307290718,1.2886,4128.3,4127.6,0.8121]
[1760307291025,1.2886,4128.3,4127.3,4.45567]
[1760307291226,0.43574,4127.6,4127.4,0.43575]
[1760307291421,0.43572,4127.8,4127.5,0.43574]
[1760307291619,0.43572,4127.8,4127.5,1.23594]
[1760307291918,1.2886,4128.3,4127.6,0.8002]
[1760307292224,3.7386,4128.6,4127.6,0.8002]
[1760307292628,1.2229,4128.9,4127.6,0.8002]
[1760307292925,1.2229,4129.5,4128.4,0.7984]
[1760307293127,3.2078,4129.7,4129.0,3.2078]
[1760307293334,0.43552,4129.7,4129.0,4.0062]
[1760307293526,0.43553,4129.6,4129.3,0.43555]
[1760307293830,0.43861703,4129.6,4129.4,0.43554]
[1760307294026,0.00308703,4129.6,4129.4,0.43554]
[1760307294324,0.00308703,4129.6,4129.5,3.2078]
[1760307294918,1.2229,4129.4,4129.3,0.00180633]
[1760307295922,1.2229,4129.4,4128.4,3.2078]
[1760307295923,1.2229,4129.2,4128.4,3.2078]
[1760307296125,0.43562,4128.7,4128.4,4.44185]
[1760307296327,1.2229,4129.2,4128.4,4.44185]
[1760307296328,0.43557,4129.2,4128.9,0.43559]
[1760307296626,1.2229,4129.1,4129.0,3.2078]
[1760307296816,1.2229,4129.1,4128.4,0.7984]
[1760307296817,0.43564,4128.5,4128.4,3.2078]
[1760307297020,0.43564,4128.5,4128.4,3.20984397]
[1760307297223,3.2078,4129.4,4128.4,3.20984397]
[1760307297419,0.49,4129.5,4128.9,3.2078]
[1760307297623,0.43554,4129.5,4128.9,3.2078]
[1760307297821,0.43555,4129.4,4129.1,0.43557]
[1760307298124,1.2229,4129.7,4128.9,3.2078]
[1760307298320,0.43556,4129.3,4129.1,0.43558]
[1760307298623,0.43556,4129.3,4128.9,3.2078]
[1760307298624,1.2229,4129.3,4128.9,3.2078]
[1760307298931,0.43557,4129.2,4128.9,4.0062]
[1760307299129,0.43558,4129.1,4128.9,3.2078]
[1760307299430,0.43557,4129.2,4129.0,1.23398]
[1760307299928,0.43555,4129.4,4129.3,0.7984]
[1760307300223,4.29635,4130.7,4129.5,0.7984]
[1760307300423,1.08852,4130.8,4129.5,4.0062]
[1760307300831,0.43548,4130.0,4129.5,4.0062]
[1760307301028,0.43545,4130.4,4129.5,4.0062]
[1760307301231,1.2229,4131.3,4129.7,0.7984]
[1760307301424,1.2229,4131.3,4129.5,3.2078]
[1760307301425,0.43536,4131.1,4130.9,3.2078]
[1760307301624,0.43535,4131.3,4130.9,4.44158]
[1760307301824,1.2229,4131.8,4130.9,4.44158]
[1760307301825,0.43536,4131.2,4131.0,0.7984]
[1760307302225,0.4354,4130.8,4130.4,3.2078]
[1760307302535,1.2229,4131.1,4130.4,3.2078]
[1760307302734,0.43548,4130.0,4129.8,3.2078]
[1760307303034,0.43555,4129.4,4129.1,3.2078]
[1760307303238,0.43556,4129.3,4129.1,3.2078]
[1760307303529,1.2229,4129.2,4129.1,3.2078]
[1760307303728,0.43556,4129.3,4129.1,3.2078]
[1760307304233,1.2229,4129.2,4129.1,3.2078]
[1760307305128,0.43556,4129.3,4129.1,3.2078]
[1760307305327,1.65853,4128.6,4128.5,3.2078]
[1760307306227,1.08895,4129.1,4128.5,3.2078]
[1760307306228,0.43561,4128.8,4128.6,0.43562]
[1760307306528,0.43561,4128.8,4128.5,3.2078]
[1760307306529,0.43562,4128.7,4128.5,3.2078]
[1760307306832,1.2229,4128.7,4128.6,0.43563]
[1760307307035,0.43561,4128.8,4128.6,0.43563]
[1760307307334,0.43563,4128.6,4128.5,3.2078]
[1760307308232,2.31182,4129.2,4128.5,3.2078]
[1760307308233,0.43559,4129.1,4128.8,0.4356]
[1760307308439,0.43557,4129.2,4129.1,0.7984]
[1760307308732,1.2229,4129.8,4129.1,0.7984]
[1760307308935,1.2229,4129.8,4129.0,3.2078]
[1760307308936,1.2229,4130.7,4129.6,0.7984]
[1760307309138,3.2078,4131.1,4130.5,0.43542]
[1760307309329,0.43539,4130.9,4130.7,0.4354]
[1760307309629,0.00296395,4131.2,4130.6,3.2078]
[1760307309829,0.00296395,4131.2,4130.7,0.43541]
[1760307309830,0.43539,4130.9,4130.7,0.43541]
[1760307310132,0.00296395,4131.2,4131.1,0.7984]
[1760307310329,1.2229,4132.4,4131.2,0.7984]
[1760307310529,1.65816,4132.1,4132.0,3.2078]
[1760307310732,1.65816,4132.1,4131.0,0.1675]
[1760307310733,0.43533,4131.4,4130.8,3.64319]
[1760307310926,3.14967639,4132.1,4131.4,0.7984]
[1760307311129,0.43515,4133.2,4132.8,0.43518]
[1760307311339,0.00294428,4133.2,4133.1,0.43515]
[1760307311528,0.00294428,4133.2,4133.1,1.23355]
[1760307311729,0.00294428,4133.2,4133.1,0.7984]
[1760307312039,0.00294428,4133.2,4133.0,0.43516]
[1760307312434,1.65806,4133.1,4132.8,3.20970641]
[1760307312738,0.00294428,4133.2,4133.1,0.7984]
[1760307313332,0.00294428,4133.2,4133.0,0.43516]
[1760307313639,0.00294428,4133.2,4132.8,3.64488641]
[1760307313829,0.00294428,4133.2,4132.8,3.20970641]
[1760307314031,0.43516,4133.1,4132.8,3.20970641]
[1760307314224,0.00294428,4133.2,4132.8,3.19731845]
[1760307314225,1.2229,4132.9,4132.8,3.19731845]
[1760307314640,0.00294428,4133.2,4132.8,3.99571845]
[1760307314840,0.43517,4133.0,4132.8,3.99571845]
[1760307315046,0.43809428,4133.2,4132.9,0.7984]
[1760307315340,0.43517,4133.0,4132.8,3.19731845]
[1760307315539,0.00294428,4133.2,4133.1,0.7984]
[1760307315732,0.22,4133.3,4133.2,1.23354]
[1760307315934,0.49,4134.5,4132.8,4.28528845]
[1760307315935,0.49,4134.5,4133.7,0.7984]
[1760307316233,1.57728,4135.5,4134.3,4.0062]
[1760307316433,1.57728,4135.5,4134.8,3.2078]
[1760307316434,1.7129,4135.5,4134.8,3.2078]
[1760307316634,1.22588826,4135.5,4134.9,0.43496]
[1760307316835,0.43493,4135.3,4135.1,0.7984]
[1760307317137,0.43496,4135.0,4134.8,3.2078]
[1760307317335,0.00298826,4135.5,4133.1,1.08787]
[1760307317336,0.43499,4134.7,4134.3,3.2078]
[1760307317541,0.43499,4134.7,4134.4,0.7984]
[1760307317743,1.2229,4134.9,4134.3,3.2078]
[1760307317936,1.08733,4135.3,4134.3,3.2078]
[1760307317937,0.43498,4134.8,4134.3,3.2078]
[1760307318133,1.2229,4135.4,4134.3,3.2078]
[1760307318333,1.2229,4135.4,4133.4,1.0878]
[1760307318334,3.08081716,4135.2,4134.8,3.2078]
[1760307318645,0.43496,4135.0,4134.8,3.2078]
[1760307318940,1.65786,4135.0,4134.8,3.2078]
[1760307319244,0.43496,4135.0,4134.8,3.2078]
[1760307319743,0.43493,4135.3,4134.9,0.7984]
[1760307320243,0.43492,4135.4,4134.8,3.2078]
[1760307320538,0.00298826,4135.5,4135.3,3.2078]
[1760307320741,0.43487,4135.9,4135.4,0.7984]
[1760307320943,1.65776,4135.9,4135.8,3.2078]
[1760307321243,1.2229,4135.9,4135.8,3.2078]
[1760307321739,1.65952889,4135.9,4135.8,0.00231765]
[1760307322046,4.85064876,4135.9,4135.8,0.00231765]
[1760307322641,1.65952889,4135.9,4135.8,0.00231765]
[1760307322839,0.00176889,4135.9,4135.8,0.00231765]
[1760307323145,0.00176889,4135.9,4135.8,3.96781765]
[1760307324646,0.00176889,4135.9,4135.8,3.21011765]
[1760307324845,0.43496,4134.9,4134.8,3.2078]
[1760307325040,1.2655,4134.4,4134.3,3.2078]
[1760307325241,0.43513,4133.3,4133.2,3.2078]
[1760307325445,1.2655,4133.7,4133.2,3.2078]
[1760307325647,1.2655,4133.3,4133.2,3.2078]
[1760307325944,2.33978035,4133.7,4133.6,0.7577]
[1760307326139,4.9962,4135.5,4134.3,1.19272]
[1760307326341,0.43662889,4135.9,4135.2,3.2078]
[1760307326543,0.00176889,4135.9,4135.8,0.7577]
[1760307326750,0.00176889,4135.9,4135.7,3.2078]
[1760307326955,1.2655,4135.8,4135.7,3.2078]
[1760307327244,1.2655,4135.8,4135.1,0.7577]
[1760307327245,0.43489,4135.7,4135.3,0.43492]
[1760307327452,0.00176889,4135.9,4135.7,0.43487]
[1760307327643,0.00176889,4135.9,4135.8,3.2078]
[1760307328154,1.60977,4137.0,4135.8,3.2078]
[1760307328155,3.2078,4137.2,4136.5,0.43479]
[1760307328345,0.43477,4136.8,4136.5,0.7577]
[1760307328546,0.43475,4137.0,4136.6,0.43478]
[1760307328745,0.43475,4137.0,4136.3,3.2078]
[1760307328746,0.43478,4136.7,4136.4,0.4348]
[1760307328944,0.43476,4136.9,4136.5,0.43479]
[1760307329142,0.00175073,4136.7,4136.6,0.7577]
[1760307329348,1.2655,4138.0,4136.8,0.43476]
[1760307329546,3.2078,4138.3,4137.5,0.43469]
[1760307329749,3.2078,4138.3,4137.4,3.9655]
[1760307329945,3.7307,4138.8,4137.9,3.64244]
[1760307330150,3.7307,4138.8,4138.0,0.7577]
[1760307330151,3.2078,4138.8,4138.0,0.7577]
[1760307330452,3.2107526,4138.8,4138.0,0.7577]
[1760307330849,0.4346,4138.4,4138.0,0.7577]
[1760307331044,0.43463,4138.1,4137.9,3.2078]
[1760307331251,0.43458,4138.6,4137.9,3.9655]
[1760307331550,0.0029526,4138.8,4138.5,0.7577]
[1760307331749,0.0029526,4138.8,4138.4,3.2078]
[1760307331750,0.0029526,4138.8,4138.7,0.7577]
[1760307331952,3.2078,4139.9,4138.6,0.43457]
[1760307331953,0.43442,4140.1,4139.3,0.4345]
[1760307332157,0.43442,4140.1,4139.2,0.7577]
[1760307332158,0.43442,4140.1,4139.5,3.64227]
[1760307332449,0.43442,4140.1,4139.2,0.7577]
[1760307332450,4.4733,4141.1,4140.2,0.4344]
[1760307332655,0.43433,4141.0,4140.6,0.5377]
[1760307332961,1.69986,4140.7,4140.6,0.00181443]
[1760307333150,0.43447,4139.6,4139.5,3.2078]
[1760307333355,0.43447,4139.6,4138.9,3.2078]
[1760307333356,0.43453,4139.1,4138.9,3.2078]
[1760307333552,1.08608,4140.1,4138.9,3.2078]
[1760307333553,1.2655,4140.4,4139.0,0.5377]
[1760307333855,1.2655,4140.4,4139.6,3.2078]
[1760307334053,3.21025553,4141.0,4139.1,3.2078]
[1760307334054,3.08334002,4140.3,4139.1,3.2078]
[1760307334252,1.2655,4139.9,4139.1,3.21040128]
[1760307334646,0.4345,4139.4,4139.1,3.21040128]
[1760307334845,0.4345,4139.4,4139.1,3.74810128]
[1760307335045,0.43445,4139.8,4139.2,0.43451]
[1760307335248,1.2655,4140.3,4139.1,3.74810128]
[1760307335455,0.43451,4139.3,4139.1,3.21040128]
[1760307335654,1.70001,4139.3,4139.1,3.21040128]
[1760307335853,0.43451,4139.3,4139.1,3.21040128]
[1760307336551,4.4733,4139.2,4139.1,0.00260128]
[1760307337149,4.4733,4139.2,4138.1,3.2078]
[1760307337150,1.2655,4139.0,4138.1,3.2078]
[1760307337352,3.2078,4138.2,4137.6,3.2078]
[1760307337559,4.9962,4137.7,4136.9,3.2078]
[1760307337852,1.2655,4137.0,4136.9,3.2078]
[1760307338252,0.00189429,4137.0,4136.9,3.20954789]
[1760307339056,1.26739429,4137.0,4136.9,3.20954789]
[1760307339253,0.43483,4136.2,4135.8,3.2078]
[1760307339459,0.43486,4136.0,4135.8,3.2078]
[1760307339762,1.2655,4135.9,4135.8,3.2078]
[1760307339956,4.3496263,4135.9,4135.8,3.2078]
[1760307340156,1.2655,4135.9,4135.8,3.2078]
[1760307340357,1.08739,4135.0,4134.0,3.2078]
[1760307340661,1.08739,4135.0,4134.0,3.20976358]
[1760307340662,0.43505,4134.2,4134.0,3.20976358]
[1760307340962,1.2655,4134.1,4134.0,0.00196358]
[1760307341260,1.26849933,4134.1,4134.0,0.00196358]
[1760307342758,4.38504377,4134.1,4134.0,0.00196358]
[1760307342959,4.38504377,4134.1,4133.0,3.64296]
[1760307342960,0.43509,4133.7,4133.0,3.64296]
[1760307343154,0.43508,4133.8,4133.5,3.2078]
[1760307343354,0.4351,4133.7,4133.5,3.2078]
[1760307343750,1.2655,4133.6,4133.5,3.2078]
[1760307343956,1.2655,4133.6,4133.5,3.21084576]
[1760307344455,1.2655,4133.6,4132.1,0.5222]
[1760307344456,0.4878,4133.5,4133.0,3.2078]
[1760307344657,0.43515,4133.1,4133.0,3.2078]
[1760307344954,1.72935,4133.1,4133.0,3.2078]
[1760307345355,0.43517,4133.0,4132.5,3.2078]
[1760307345561,3.2078,4133.6,4132.6,1.1875]
[1760307345758,3.2078,4133.6,4132.5,3.21065553]
[1760307345759,0.4352,4132.7,4132.5,3.21065553]
[1760307345962,1.7294,4132.7,4132.5,3.21065553]
[1760307346155,0.43518,4132.9,4132.5,4.39815553]
[1760307346357,0.43519,4132.8,4132.5,4.39815553]
[1760307346562,3.2078,4133.1,4132.5,4.39815553]
[1760307346563,0.4352,4132.7,4132.5,3.21065553]
[1760307346760,0.4352,4132.7,4132.5,4.39815553]
[1760307347661,0.4352,4132.7,4132.5,3.21065553]
[1760307347859,1.7294,4132.7,4132.5,3.21065553]
[1760307348059,0.4352,4132.7,4132.5,3.21065553]
[1760307348360,1.2942,4132.6,4132.5,3.21065553]
[1760307348769,1.2942,4133.1,4132.6,1.1875]
[1760307349060,0.4878,4133.5,4132.6,1.1875]
[1760307349061,0.4352,4132.7,4132.6,1.1875]
[1760307349362,0.4352,4132.7,4132.5,3.21065553]
[1760307349363,1.2942,4132.6,4132.5,3.21065553]
[1760307349564,0.4352,4132.7,4132.5,3.21065553]
[1760307349761,0.4352,4132.7,4132.5,4.39815553]
[1760307350157,0.43512,4133.5,4133.0,0.43515]
[1760307350371,1.2942,4133.8,4133.1,4.3953]
[1760307350566,0.43509,4133.7,4133.2,0.43514]
[1760307350760,0.43509,4133.7,4133.1,4.3953]
[1760307350761,3.12075237,4133.7,4133.6,3.2078]
[1760307350959,3.2078,4134.2,4133.6,3.2078]
[1760307351166,0.43508,4133.8,4133.6,3.2078]
[1760307351363,1.2942,4133.7,4133.6,3.2078]
[1760307351566,0.43508,4133.8,4133.5,1.2105]
[1760307351869,0.43804933,4134.1,4133.8,0.43508]
[1760307352070,0.00299933,4134.1,4133.9,0.43506]
[1760307352367,0.00299933,4134.1,4133.8,1.64558]
[1760307352564,0.00299933,4134.1,4134.0,1.2105]
[1760307352766,0.43498,4134.8,4134.4,1.2105]
[1760307352972,0.43495,4135.1,4134.8,0.43497]
[1760307353268,0.43497,4134.9,4134.7,3.2078]
[1760307353469,0.435,4134.6,4134.2,3.64283]
[1760307353660,0.00218033,4134.6,4134.4,0.43501]
[1760307353862,0.00218033,4134.6,4134.5,1.2105]
[1760307354170,0.00218033,4134.6,4133.5,1.08776]
[1760307354171,1.2251,4134.3,4133.9,0.43506]
[1760307354376,0.43504,4134.2,4133.9,0.43506]
[1760307354564,0.43502,4134.4,4134.2,0.43503]
[1760307354766,0.43504,4134.2,4133.8,0.43507]
[1760307354969,0.43508,4133.9,4133.5,3.2078]
[1760307355165,0.43508,4133.9,4133.7,1.64559]
[1760307355673,0.43508,4133.9,4133.7,0.43509]
[1760307355866,0.43509,4133.8,4133.5,3.64291]
[1760307356175,0.00218033,4134.6,4133.5,3.2078]
[1760307356474,0.00218033,4134.6,4133.4,0.3185]
[1760307356475,0.00218033,4134.6,4134.5,1.2105]
[1760307356971,0.00218033,4134.6,4134.1,3.2078]
[1760307356972,0.43718033,4134.6,4134.1,4.4183]
[1760307357274,0.43718033,4134.6,4134.4,1.64551]
[1760307357570,0.43718033,4134.6,4134.4,1.2105]
[1760307357770,1.2251,4134.2,4134.1,3.2078]
[1760307358070,1.2251,4134.4,4133.6,3.2078]
[1760307358275,0.43504,4134.3,4134.2,1.2105]
[1760307358462,0.00218033,4134.6,4133.9,0.43506]
[1760307358772,0.00218033,4134.6,4133.6,4.4183]
[1760307358773,0.43507,4133.9,4133.7,0.43508]
[1760307359367,5.412658,4134.5,4133.6,4.4183]
[1760307359368,1.2251,4134.5,4134.1,0.43505]
[1760307359569,0.43502,4134.4,4134.2,0.43504]
[1760307359775,0.00218033,4134.6,4134.4,0.43501]
[1760307359776,0.43718033,4134.6,4134.4,0.43501]
[1760307359975,0.43503,4134.3,4134.1,3.2078]
[1760307360269,1.2251,4134.2,4133.7,0.43509]
[1760307360474,1.2251,4133.9,4133.7,0.43509]
[1760307360865,1.66012,4134.5,4133.7,1.08773]
[1760307361172,0.43718033,4134.6,4134.4,0.43501]
[1760307361970,0.43503,4134.4,4134.2,0.43503]
[1760307362472,0.43504,4134.3,4134.1,0.43505]
[1760307362673,1.2251,4134.2,4134.1,0.43505]
[1760307363274,1.66012,4134.5,4134.4,0.43501]
[1760307363875,1.22728033,4134.6,4134.4,0.43501]
[1760307364671,1.2251,4134.5,4134.4,0.43501]
[1760307364871,0.43503,4134.4,4134.3,0.43503]
[1760307365074,0.00218033,4134.6,4133.6,3.2078]
[1760307365377,0.00218033,4134.6,4134.5,1.2105]
[1760307365572,1.2251,4135.4,4134.5,1.2105]
[1760307365777,0.4349,4135.5,4135.3,0.43492]
[1760307366077,1.2251,4135.0,4134.9,3.2078]
[1760307366272,1.2251,4135.0,4134.8,0.43497]
[1760307366273,0.95111,4135.5,4135.4,0.43491]
[1760307366473,0.95111,4135.5,4135.0,0.43495]
[1760307366474,1.66003,4135.2,4135.0,0.43495]
[1760307366679,1.2251,4135.1,4135.0,0.43745349]
[1760307366977,1.2251,4135.1,4135.0,0.00250349]
[1760307369074,0.43722899,4135.2,4135.1,1.64544]
[1760307369075,0.00229899,4135.2,4135.1,1.64544]
[1760307369275,3.2078,4135.8,4135.7,1.64538]
[1760307369977,1.2251,4135.1,4135.0,0.00250349]
[1760307370277,0.00173373,4135.1,4135.0,1.21300349]
[1760307372178,0.00173373,4135.1,4135.0,1.69070349]
[1760307372574,0.43484,4136.2,4136.0,0.43485]
[1760307372779,0.43489,4135.6,4135.4,3.64271]
[1760307373079,3.2078,4136.4,4136.0,0.43485]
[1760307373080,3.52878814,4136.2,4136.0,0.43485]
[1760307373269,1.2251,4136.2,4135.8,0.43486]
[1760307373468,1.2251,4136.0,4135.8,0.43486]
[1760307373675,1.2251,4136.0,4135.9,1.64536]
[1760307373676,0.00260145,4136.0,4135.9,1.64536]
[1760307373875,0.00260145,4136.0,4135.9,4.85316]
[1760307374675,3.2078,4137.0,4136.9,0.43475]
[1760307374979,0.43478,4136.7,4136.5,1.64529]
[1760307375177,0.43474,4137.1,4136.9,0.43475]
[1760307375779,0.00254435,4137.1,4136.7,0.43477]
[1760307375975,1.2251,4137.0,4136.7,0.43477]
[1760307376169,0.00254435,4137.1,4136.7,0.43477]
[1760307376484,1.2251,4136.9,4136.7,0.43477]
[1760307376674,1.65986,4136.9,4136.7,0.43477]
[1760307376875,0.43483,4136.2,4136.0,3.2078]
[1760307377077,1.65993,4136.2,4136.0,3.2078]
[1760307377281,1.65993,4136.2,4135.5,0.4777]
[1760307377282,1.65996,4135.9,4135.7,0.43488]
[1760307377781,0.43485,4136.0,4135.6,1.2105]
[1760307377987,0.43485,4136.0,4135.5,3.2078]
[1760307378181,3.08095726,4136.4,4135.6,1.2105]
[1760307378382,1.2251,4136.3,4135.6,1.2105]
[1760307378883,0.43484,4136.1,4135.5,4.4183]
[1760307379074,1.2251,4136.8,4135.6,1.08723]
[1760307379275,0.43477,4136.8,4136.7,0.43477]
[1760307379480,3.2078,4137.5,4137.0,1.6882]
[1760307379681,3.2078,4137.5,4137.0,4.896]
[1760307379878,3.64249,4137.5,4137.0,4.896]
[1760307380087,3.2078,4137.5,4137.0,4.4183]
[1760307380381,0.43473,4137.2,4137.0,4.4183]
[1760307380686,0.43471,4137.3,4137.0,4.4183]
[1760307381078,0.43468,4137.6,4137.0,4.4183]
[1760307381278,0.43472,4137.3,4137.0,4.4183]
[1760307381493,0.43469,4137.5,4137.0,4.4183]
[1760307381783,4.29425,4138.6,4137.0,4.4183]
[1760307381784,1.236,4138.9,4137.1,1.2473]
[1760307381975,1.236,4138.9,4137.0,3.6424]
[1760307381976,0.43454,4139.0,4138.7,1.2473]
[1760307382176,3.2078,4139.7,4139.0,1.68183]
[1760307382376,0.43449,4139.5,4139.2,0.43451]
[1760307382579,0.43449,4139.4,4139.3,1.2473]
[1760307382789,1.67337918,4139.4,4139.3,0.00230649]
[1760307383579,0.43737918,4139.4,4139.3,0.00230649]
[1760307383785,0.00288918,4139.4,4139.3,1.24960649]
[1760307383986,1.74,4140.0,4139.3,1.24960649]
[1760307383987,0.43439,4140.5,4140.1,0.43441]
[1760307384285,0.43435,4140.8,4140.3,0.43439]
[1760307384482,3.2078,4141.4,4140.5,3.2078]
[1760307384681,0.43433,4141.0,4140.5,3.614]
[1760307384884,0.43433,4141.0,4140.0,3.2078]
[1760307384885,0.00262164,4141.0,4140.0,3.2078]
[1760307385079,1.67041,4140.2,4140.0,3.2078]
[1760307385679,1.67041,4140.2,4140.0,4.4551]
[1760307385680,0.43441,4140.2,4140.0,4.4551]
[1760307386080,0.43441,4140.2,4140.0,3.2078]
[1760307386586,1.67041,4140.2,4140.0,3.2078]
[1760307387688,0.43445,4139.9,4139.4,3.2078]
[1760307387883,0.43442,4140.1,4139.7,1.2473]
[1760307388082,0.43442,4140.2,4139.8,0.43445]
[1760307388278,3.2078,4140.9,4140.4,1.2473]
[1760307388579,0.43437,4140.6,4140.4,1.2473]
[1760307388776,0.43439,4140.4,4140.2,1.2473]
[1760307389278,0.43439,4140.4,4140.2,0.4344]
[1760307389474,0.43439,4140.4,4140.3,1.2473]
[1760307389876,0.43435,4140.8,4140.4,0.43439]
[1760307390182,0.43438,4140.6,4140.5,1.2473]
[1760307391483,0.43438,4140.6,4140.1,3.2078]
[1760307391484,0.4344,4140.3,4140.1,3.2078]
[1760307391686,0.4344,4140.3,4140.2,1.2473]
[1760307393388,0.4344,4140.3,4140.1,3.2078]
[1760307393691,0.4344,4140.3,4140.2,1.2473]
[1760307394489,1.236,4140.8,4140.2,1.2473]
[1760307394490,3.2078,4140.9,4140.2,1.2473]
[1760307394792,4.9478,4142.4,4141.0,0.4741]
[1760307395088,0.43423,4141.9,4141.7,3.2078]
[1760307395291,1.236,4141.8,4141.7,3.2078]
[1760307395486,0.4343,4141.2,4141.1,1.2473]
[1760307395886,0.00180265,4141.2,4140.8,3.2078]
[1760307396082,0.43433,4141.0,4140.8,3.2078]
[1760307396281,1.67033,4141.0,4140.8,3.2078]
[1760307396488,1.236,4140.9,4140.8,3.2078]
[1760307396792,1.236,4140.9,4139.5,0.4741]
[1760307396793,0.43439,4140.4,4140.3,3.2078]
[1760307396991,1.67039,4140.4,4140.3,3.2078]
[1760307397289,0.43439,4140.4,4140.3,3.2078]
[1760307397489,0.43433,4141.0,4140.6,1.2473]
[1760307397685,0.43433,4141.0,4140.9,1.2473]
[1760307397881,0.43433,4141.0,4140.8,3.2078]
[1760307398087,0.43438,4140.5,4140.3,3.2078]
[1760307398390,1.236,4140.4,4140.3,3.2078]
[1760307398590,4.40416516,4140.4,4140.3,3.2078]
[1760307399090,1.67049,4139.4,4139.3,6.49e-06]
[1760307399283,1.67061,4138.3,4138.2,3.2078]
[1760307399798,1.67061,4138.3,4137.7,3.2078]
[1760307399799,0.43466,4137.8,4137.7,3.2078]
[1760307400086,1.67275765,4137.8,4137.7,3.20970409]
[1760307400391,1.236,4139.3,4137.7,4.45700409]
[1760307400691,1.08607,4140.1,4138.9,3.64234]
[1760307400886,1.236,4140.2,4139.0,1.2473]
[1760307401091,0.4345,4139.4,4139.0,1.2473]
[1760307401278,4.36144774,4139.8,4139.4,1.2473]
[1760307401279,0.43445,4139.8,4139.4,1.2473]
[1760307401484,0.00200123,4139.8,4139.7,1.2473]
[1760307402286,0.43448,4139.6,4139.3,3.2078]
[1760307402486,0.43449,4139.5,4139.3,3.2078]
[1760307402891,1.236,4139.4,4138.6,3.2078]
[1760307403089,0.4345,4139.4,4139.1,3.2078]
[1760307403297,0.43451,4139.3,4139.1,3.2078]
[1760307404291,1.19280123,4139.8,4139.1,3.2078]
[1760307404486,3.2078,4140.5,4138.4,1.08649]
[1760307404487,1.1908,4140.8,4139.8,1.2289]
[1760307404688,1.1908,4140.8,4139.8,1.66334]
[1760307404991,0.43441,4140.2,4139.8,1.66334]
[1760307405200,3.10392944,4140.7,4139.7,3.2078]
[1760307405201,1.1908,4140.0,4139.7,3.2078]
[1760307405387,1.62523,4140.0,4139.2,3.64231]
[1760307405695,0.00261649,4140.0,4139.7,3.2078]
[1760307406490,0.43704649,4140.0,4139.7,3.2078]
[1760307406695,0.43444,4139.9,4139.7,3.2078]
[1760307406995,1.1908,4139.8,4139.7,3.2078]
[1760307407291,0.00261649,4140.0,4139.8,0.43445]
[1760307407498,0.00261649,4140.0,4139.9,1.2289]
[1760307407695,0.43434,4140.9,4140.7,1.2289]
[1760307407894,0.43434,4140.9,4140.6,0.43436]
[1760307407895,0.43432,4141.1,4140.5,1.2289]
[1760307408195,0.43432,4141.1,4140.4,3.2078]
[1760307408196,0.43436,4140.7,4140.4,3.2078]
[1760307408395,1.62517,4140.6,4140.4,3.2078]
[1760307408593,1.62783887,4140.6,4140.4,3.20979486]
[1760307409098,1.1908,4140.5,4140.4,3.20979486]
[1760307409699,1.1908,4140.5,4140.4,0.00199486]
[1760307409992,1.1908,4140.5,4139.3,3.2078]
[1760307409993,0.43449,4139.4,4139.3,3.2078]
[1760307410192,1.08613,4139.8,4139.3,3.2078]
[1760307410193,0.43445,4139.8,4139.3,3.2078]
[1760307410395,0.43446,4139.7,4139.3,3.2078]
[1760307410594,0.43444,4140.0,4139.4,1.2289]
[1760307410785,4.29372,4140.7,4139.8,3.64225]
[1760307410786,0.43442,4140.1,4139.8,3.64225]
[1760307411294,1.69516887,4140.6,4139.8,3.2078]
[1760307411295,1.1908,4139.9,4139.8,3.2078]
[1760307413494,1.1908,4139.9,4139.4,0.00296373]
[1760307413495,1.62768,4139.5,4139.4,0.00296373]
[1760307413792,1.62768,4139.5,4138.6,3.2078]
[1760307413793,0.43457,4138.7,4138.6,3.2078]
[1760307413988,1.62777,4138.7,4138.6,3.2078]
[1760307414388,0.43456,4138.8,4138.6,4.84487]
[1760307414592,0.43456,4138.8,4138.6,3.64237]
[1760307414894,1.62776,4138.8,4138.6,3.64435804]
[1760307415198,1.1932,4138.7,4138.6,3.20978804]
[1760307415699,0.43456,4138.8,4138.6,3.20978804]
[1760307415895,1.62776,4138.8,4138.6,3.20978804]
[1760307416196,1.1932,4138.7,4138.6,3.20978804]
[1760307417198,1.1932,4138.7,4138.6,0.00198804]
[1760307417393,4.30899347,4138.7,4138.6,0.00198804]
[1760307417892,4.30899347,4138.7,4136.6,3.2078]
[1760307417893,1.1932,4136.7,4136.6,3.2078]
[1760307418286,4.29449,4137.7,4136.6,3.2078]
[1760307418287,3.2078,4137.7,4136.6,4.4103]
[1760307418491,0.4347,4137.5,4137.3,1.2025]
[1760307418688,0.43693494,4137.5,4137.3,1.20516449]
[1760307418888,0.43693494,4137.5,4137.3,0.00266449]
[1760307419093,1.1932,4138.2,4137.4,1.2025]
[1760307419288,0.43458,4138.6,4138.3,1.2025]
[1760307419705,0.43459,4138.5,4138.3,1.2025]
[1760307420296,0.4346,4138.4,4138.1,0.43462]
[1760307420499,0.00180943,4138.5,4138.4,1.2025]
[1760307420799,0.00180943,4138.5,4138.0,3.64243]
[1760307420800,0.00180943,4138.5,4138.1,1.2025]
[1760307421002,0.00180943,4138.5,4138.2,0.43461]
[1760307421499,0.43639943,4138.5,4138.2,0.43461]
[1760307421703,0.4346,4138.4,4138.2,0.43461]
[1760307422004,0.00180943,4138.5,4138.4,1.2025]